fUST/lending_fUST_20250203
["ID","MTS","AMOUNT","RATE_DAILY","PERIOD"]
[351410898,1738558063683,-715.91,0.00017671,2]
[351410899,1738558063708,-512.64,0.00017671,2]
[351410900,1738558063731,-882.22,0.00017671,2]
[351410901,1738558063755,-507.28,0.00017671,2]
[351410902,1738558063779,-1403.3,0.00017671,2]
[351410903,1738558063807,-500.0,0.00017671,2]
[351410904,1738558063829,-747.71,0.00017671,2]
[351410905,1738558063852,-656.02,0.00017671,2]
[351410906,1738558063875,-500.0,0.00017671,2]
[351410907,1738558063899,-715.27,0.00017671,2]
[351410908,1738558063923,-3304.41,0.00017671,2]
[351410909,1738558063945,-2540.24,0.00017671,2]
[351410910,1738558063968,-1444.36,0.00017671,2]
[351410911,1738558063992,-500.0,0.00017671,2]
[351410912,1738558064017,-1493.63,0.00017671,2]
[351410913,1738558064045,-500.0,0.00017671,2]
[351410914,1738558064070,-1791.71,0.00017671,2]
[351410915,1738558064093,-622.36,0.00017671,2]
[351410916,1738558064117,-2841.41,0.00017671,2]
[351410917,1738558064141,-714.88,0.00017671,2]
[351410918,1738558064164,-500.0,0.00017671,2]
[351410919,1738558064188,-564.73,0.00017671,2]
[351410920,1738558064211,-500.0,0.00017671,2]
[351410921,1738558064235,-1705.23,0.00017671,2]
[351410922,1738558064258,-500.0,0.00017671,2]
[351410923,1738558064284,-1005.66,0.00017671,2]
[351410924,1738558064307,-500.0,0.00017671,2]
[351410925,1738558064330,-500.0,0.00017671,2]
[351410926,1738558064353,-500.0,0.00017671,2]
[351410927,1738558064375,-1163.04,0.00017671,2]
[351410928,1738558064397,-476.54540176,0.00017671,2]
[351410929,1738558064421,-2225.42,0.00017671,2]
[351410930,1738558064442,-500.0,0.00017671,2]
[351410931,1738558064465,-656.9,0.00017671,2]
[351410932,1738558064487,-151.0,0.000177,2]
[351410933,1738558064509,-157.0,0.00017737,2]
[351410934,1738558064531,-157.0,0.00017737,2]
[351410935,1738558064557,-156.0,0.00017743,2]
[351410936,1738558064579,-1200.0,0.0001778,2]
[351410937,1738558064601,-1903.09,0.000178,2]
[351410938,1738558064623,-151.0,0.00017808,2]
[351410939,1738558064646,-151.0,0.00017808,2]
[351410940,1738558064668,-286.85548802,0.00017808,2]
[351410941,1738558064695,-757.43,0.00017808,2]
[351410942,1738558064718,-500.0,0.00017808,2]
[351410943,1738558064742,-551.48,0.00017808,2]
[351410944,1738558064907,-500.0,0.00017808,2]
[351410945,1738558064931,-547.42,0.00017808,2]
[351410946,1738558064958,-6706.79,0.00017808,2]
[351410947,1738558064984,-500.64,0.00017808,2]
[351410948,1738558065010,-715.91,0.00017808,2]
[351410949,1738558065040,-512.64,0.00017808,2]
[351410950,1738558065064,-882.22,0.00017808,2]
[351410951,1738558065090,-507.28,0.00017808,2]
[351410952,1738558065114,-1403.3,0.00017808,2]
[351410953,1738558065139,-500.0,0.00017808,2]
[351410954,1738558065163,-747.71,0.00017808,2]
[351410955,1738558065187,-656.02,0.00017808,2]
[351410956,1738558065211,-500.0,0.00017808,2]
[351410957,1738558065236,-715.27,0.00017808,2]
[351410958,1738558065260,-3304.41,0.00017808,2]
[351410959,1738558065285,-2540.24,0.00017808,2]
[351410960,1738558065310,-1444.36,0.00017808,2]
[351410961,1738558065334,-500.0,0.00017808,2]
[351410962,1738558065357,-1493.63,0.00017808,2]
[351410963,1738558065379,-500.0,0.00017808,2]
[351410964,1738558065404,-1791.71,0.00017808,2]
[351410965,1738558065426,-622.36,0.00017808,2]
[351410966,1738558065449,-2841.41,0.00017808,2]
[351410967,1738558065472,-714.88,0.00017808,2]
[351410968,1738558065495,-500.0,0.00017808,2]
[351410969,1738558065517,-564.73,0.00017808,2]
[351410970,1738558065542,-500.0,0.00017808,2]
[351410971,1738558065564,-1705.23,0.00017808,2]
[351410972,1738558065588,-500.0,0.00017808,2]
[351410973,1738558065612,-1005.66,0.00017808,2]
[351410974,1738558065634,-500.0,0.00017808,2]
[351410975,1738558065657,-500.0,0.00017808,2]
[351410976,1738558065681,-500.0,0.00017808,2]
[351410977,1738558065708,-1163.04,0.00017808,2]
[351410978,1738558065733,-2225.42,0.00017808,2]
[351410979,1738558065755,-500.0,0.00017808,2]
[351410980,1738558065781,-656.9,0.00017808,2]
[351410981,1738558065807,-918.8719285,0.00017819,2]
[351410982,1738558065828,-22597.17839438,0.00017819,2]
[351410983,1738558065849,-310.6606586,0.00017836,2]
[351410984,1738558065871,-157.0,0.00017837,2]
[351410985,1738558065893,-157.0,0.00017837,2]
[351410986,1738558065915,-157.0,0.00017837,2]
[351410987,1738558065936,-157.0,0.00017837,2]
[351410988,1738558065959,-157.0,0.00017837,2]
[351410989,1738558065981,-157.0,0.00017837,2]
[351410990,1738558066004,-157.0,0.00017837,2]
[351410991,1738558066027,-157.0,0.00017837,2]
[351410992,1738558066052,-157.0,0.00017837,2]
[351410993,1738558066075,-157.0,0.00017837,2]
[351410994,1738558066098,-157.0,0.00017837,2]
[351410995,1738558066121,-157.0,0.00017837,2]
[351410996,1738558066143,-157.0,0.00017837,2]
[351410997,1738558066165,-157.0,0.00017837,2]
[351410998,1738558066186,-164.98,0.00017837,2]
[351410999,1738558066208,-166.0,0.00017837,2]
[351411000,1738558066229,-166.0,0.00017837,2]
[351411001,1738558066250,-166.0,0.00017837,2]
[351411002,1738558066271,-166.0,0.00017837,2]
[351411003,1738558066297,-166.0,0.00017837,2]
[351411004,1738558066318,-166.0,0.00017837,2]
[351411005,1738558066340,-4704.83664639,0.000179,2]
[351411006,1738558066362,-2000.0,0.000179,2]
[351411007,1738558066383,-2000.0,0.000179,2]
[351411008,1738558066405,-151.0,0.000179,2]
[351411009,1738558066426,-151.0,0.000179,2]
[351411010,1738558066446,-151.0,0.00017945,2]
[351411011,1738558066468,-757.43,0.00017945,2]
[351411012,1738558066492,-500.0,0.00017945,2]
[351411013,1738558066517,-551.48,0.00017945,2]
[351411014,1738558066543,-500.0,0.00017945,2]
[351411015,1738558066566,-547.42,0.00017945,2]
[351411016,1738558066590,-6706.79,0.00017945,2]
[351411017,1738558066613,-500.64,0.00017945,2]
[351411018,1738558066636,-715.91,0.00017945,2]
[351411019,1738558066659,-512.64,0.00017945,2]
[351411020,1738558066681,-882.22,0.00017945,2]
[351411021,1738558066709,-507.28,0.00017945,2]
[351411022,1738558066733,-1403.3,0.00017945,2]
[351411023,1738558066756,-500.0,0.00017945,2]
[351411024,1738558066781,-747.71,0.00017945,2]
[351411025,1738558066806,-656.02,0.00017945,2]
[351411026,1738558066829,-500.0,0.00017945,2]
[351411027,1738558066852,-715.27,0.00017945,2]
[351411028,1738558066876,-3304.41,0.00017945,2]
[351411029,1738558066899,-2540.24,0.00017945,2]
[351411030,1738558066922,-1444.36,0.00017945,2]
[351411031,1738558066946,-500.0,0.00017945,2]
[351411032,1738558066970,-1493.63,0.00017945,2]
[351411033,1738558066993,-500.0,0.00017945,2]
[351411034,1738558067017,-1791.71,0.00017945,2]
[351411035,1738558067042,-622.36,0.00017945,2]
[351411036,1738558067065,-2841.41,0.00017945,2]
[351411037,1738558067087,-714.88,0.00017945,2]
[351411038,1738558067110,-500.0,0.00017945,2]
[351411039,1738558067132,-564.73,0.00017945,2]
[351411040,1738558067159,-500.0,0.00017945,2]
[351411041,1738558067183,-1705.23,0.00017945,2]
[351411042,1738558067206,-500.0,0.00017945,2]
[351411043,1738558067229,-1005.66,0.00017945,2]
[351411044,1738558067251,-432.58746967,0.00017945,2]
[351411045,1738558067274,-500.0,0.00017945,2]
[351411046,1738558067299,-500.0,0.00017945,2]
[351411047,1738558067321,-1163.04,0.00017945,2]
[351411048,1738558067344,-2225.42,0.00017945,2]
[351411049,1738558067365,-500.0,0.00017945,2]
[351411050,1738558067388,-656.9,0.00017945,2]
[351411051,1738558067409,-500.0,0.00017973,2]
[351411052,1738558067431,-500.77770864,0.00017973,2]
[351411053,1738558067451,-269.57182901,0.00017973,2]
[351411054,1738558067471,-508.596524,0.00017973,2]
[351411055,1738558067491,-500.0,0.00017973,2]
[351411056,1738558067511,-500.0,0.00017973,2]
[351411057,1738558067531,-3281.08900514,0.0001798,2]
[351411058,1738558067556,-239.88970581,0.00017998,2]
[351411059,1738558067592,-161.96169493,0.00017999,2]
[351411060,1738558067613,-64859.99327875,0.00017999,5]
[351411061,1738558067634,-160.0,0.00018,4]
[351411062,1738558067655,-160.98583136,0.00018,5]
[351411063,1738558067676,-69078.01345413,0.00018,15]
[351411064,1738558067831,-157.0,0.00017737,2]
[351411065,1738558067853,-74253.625034,0.00018,5]
[351411066,1738558150092,181.248605,0.00013699,2]
[351411067,1738558152181,-151.97270438,0.00015831,2]
[351411073,1738558235614,-500.0,0.00015753,2]
[351411074,1738558235624,-26.03901762,0.00015831,2]
[351411075,1738558235635,-250.0,0.00016137,2]
[351411076,1738558235645,-300.0,0.00016437,2]
[351411077,1738558235655,-3353.4,0.00016438,2]
[351411078,1738558235670,-500.0,0.00016438,2]
[351411079,1738558235681,-500.0,0.00016438,2]
[351411080,1738558235691,-500.0,0.00016438,2]
[351411081,1738558235701,-500.0,0.00016438,2]
[351411082,1738558235711,-500.0,0.00016438,2]
[351411083,1738558235721,-500.0,0.00016438,2]
[351411084,1738558235731,-500.0,0.00016438,2]
[351411085,1738558235743,-500.0,0.00016438,2]
[351411086,1738558235753,-500.0,0.00016438,2]
[351411087,1738558235766,-746.82,0.00016438,2]
[351411088,1738558235775,-111.95609638,0.00016438,2]
[351411089,1738558235887,-1158.16390362,0.00016438,2]
[351411090,1738558235898,-500.0,0.00016438,2]
[351411091,1738558235907,-500.0,0.00016438,2]
[351411092,1738558235920,-1652.2,0.00016438,2]
[351411093,1738558235930,-500.0,0.00016438,2]
[351411094,1738558235940,-605.47548597,0.00016438,2]
[351411095,1738558235950,-502.83,0.00016438,2]
[351411096,1738558235959,-895.85,0.00016438,2]
[351411097,1738558235969,-500.0,0.00016438,2]
[351411098,1738558235978,-852.62,0.00016438,2]
[351411099,1738558235988,-581.52,0.00016438,2]
[351411100,1738558235998,-1112.71,0.00016438,2]
[351411101,1738558236007,-548.47648144,0.00016575,2]
[351411102,1738558236019,-1155.0741,0.00016575,2]
[351411103,1738558236031,-525.05090305,0.00016575,2]
[351411104,1738558236043,-618.6632773,0.00016575,2]
[351411105,1738558236402,-506.13523821,0.00016575,2]
[351411106,1738558236415,-500.0,0.00016575,2]
[351411107,1738558236425,-500.0,0.00016575,2]
[351411108,1738558236434,-500.0,0.00016575,2]
[351411109,1738558236444,-500.0,0.00016575,2]
[351411110,1738558236453,-500.0,0.00016575,2]
[351411111,1738558236463,-500.0,0.00016575,2]
[351411112,1738558236472,-500.0,0.00016575,2]
[351411113,1738558236481,-500.0,0.00016575,2]
[351411114,1738558236491,-746.82,0.00016575,2]
[351411115,1738558236500,-1270.12,0.00016575,2]
[351411116,1738558236509,-500.0,0.00016575,2]
[351411117,1738558236518,-500.0,0.00016575,2]
[351411118,1738558236527,-1652.2,0.00016575,2]
[351411119,1738558236537,-500.0,0.00016575,2]
[351411120,1738558236547,-502.83,0.00016575,2]
[351411121,1738558236556,-895.85,0.00016575,2]
[351411122,1738558236565,-500.0,0.00016575,2]
[351411123,1738558236574,-852.62,0.00016575,2]
[351411124,1738558236583,-581.52,0.00016575,2]
[351411125,1738558236592,-1112.71,0.00016575,2]
[351411126,1738558236602,-3353.4,0.00016712,2]
[351411127,1738558236611,-500.0,0.00016712,2]
[351411128,1738558236620,-500.0,0.00016712,2]
[351411129,1738558236629,-500.0,0.00016712,2]
[351411130,1738558236638,-500.0,0.00016712,2]
[351411131,1738558236647,-500.0,0.00016712,2]
[351411132,1738558236656,-500.0,0.00016712,2]
[351411133,1738558236667,-500.0,0.00016712,2]
[351411134,1738558236676,-500.0,0.00016712,2]
[351411135,1738558236685,-746.82,0.00016712,2]
[351411136,1738558236694,-1270.12,0.00016712,2]
[351411137,1738558236704,-500.0,0.00016712,2]
[351411138,1738558236713,-500.0,0.00016712,2]
[351411139,1738558236722,-1652.2,0.00016712,2]
[351411140,1738558236730,-500.0,0.00016712,2]
[351411141,1738558236740,-502.83,0.00016712,2]
[351411142,1738558236752,-895.85,0.00016712,2]
[351411143,1738558236761,-500.0,0.00016712,2]
[351411144,1738558236770,-852.62,0.00016712,2]
[351411145,1738558236779,-581.52,0.00016712,2]
[351411146,1738558236790,-1112.71,0.00016712,2]
[351411147,1738558236799,-722.18,0.00016848,2]
[351411148,1738558236809,-500.0,0.00016848,2]
[351411149,1738558236818,-3353.4,0.00016849,2]
[351411150,1738558236828,-500.0,0.00016849,2]
[351411151,1738558236839,-500.0,0.00016849,2]
[351411152,1738558236848,-500.0,0.00016849,2]
[351411153,1738558236858,-500.0,0.00016849,2]
[351411154,1738558236867,-500.0,0.00016849,2]
[351411155,1738558236876,-500.0,0.00016849,2]
[351411156,1738558236885,-500.0,0.00016849,2]
[351411157,1738558236895,-326.73144312,0.00016849,2]
[351411158,1738558236907,-173.26855688,0.00016849,2]
[351411159,1738558236919,-746.82,0.00016849,2]
[351411160,1738558236929,-1270.12,0.00016849,2]
[351411161,1738558236938,-500.0,0.00016849,2]
[351411162,1738558236947,-500.0,0.00016849,2]
[351411163,1738558236957,-1652.2,0.00016849,2]
[351411164,1738558236966,-500.0,0.00016849,2]
[351411165,1738558236975,-502.83,0.00016849,2]
[351411166,1738558236985,-895.85,0.00016849,2]
[351411167,1738558236994,-500.0,0.00016849,2]
[351411168,1738558237003,-852.62,0.00016849,2]
[351411169,1738558237013,-581.52,0.00016849,2]
[351411170,1738558237022,-669.54252207,0.00016849,2]
[351411210,1738558237728,-6797.48,0.00016438,2]
[351411212,1738558237738,-735.86,0.00016438,2]
[351411213,1738558237752,-1262.57701905,0.00016575,2]
[351411217,1738558237784,-5534.90298095,0.00016575,2]
[351411219,1738558237794,-443.16747793,0.00016849,2]
[351411221,1738558237804,-153.0,0.00016882,2]
[351411223,1738558237813,-153.0,0.00016882,2]
[351411225,1738558237824,-153.0,0.00016882,2]
[351411227,1738558237833,-153.0,0.00016882,2]
[351411229,1738558237843,-153.0,0.00016882,2]
[351411231,1738558237852,-153.0,0.00016882,2]
[351411233,1738558237862,-153.0,0.00016882,2]
[351411235,1738558237872,-153.0,0.00016882,2]
[351411237,1738558237882,-153.0,0.00016882,2]
[351411239,1738558237893,-153.0,0.00016882,2]
[351411241,1738558237902,-153.0,0.00016882,2]
[351411243,1738558237913,-153.0,0.00016882,2]
[351411245,1738558237925,-153.0,0.00016882,2]
[351411247,1738558237935,-153.0,0.00016882,2]
[351411249,1738558237944,-147.77676712,0.00016882,2]
[351411434,1738558243716,-5.22323288,0.00016882,2]
[351411435,1738558243726,-153.0,0.00016882,2]
[351411436,1738558243735,-153.0,0.00016882,2]
[351411437,1738558243747,-153.0,0.00016882,2]
[351411438,1738558243758,-153.0,0.00016882,2]
[351411439,1738558243767,-153.0,0.00016882,2]
[351411440,1738558243777,-153.0,0.00016882,2]
[351411441,1738558243787,-153.0,0.00016882,2]
[351411442,1738558243797,-153.0,0.00016882,2]
[351411443,1738558243807,-153.0,0.00016882,2]
[351411444,1738558243817,-153.0,0.00016882,2]
[351411445,1738558243827,-153.0,0.00016882,2]
[351411446,1738558243837,-153.0,0.00016882,2]
[351411447,1738558243847,-153.0,0.00016882,2]
[351411448,1738558243856,-153.0,0.00016882,2]
[351411449,1738558243865,-5000.0,0.00016984,2]
[351411450,1738558243875,-722.18,0.00016985,2]
[351411451,1738558243884,-500.0,0.00016985,2]
[351411452,1738558243894,-3353.4,0.00016986,2]
[351411453,1738558243904,-500.0,0.00016986,2]
[351411454,1738558243916,-500.0,0.00016986,2]
[351411455,1738558243926,-500.0,0.00016986,2]
[351411456,1738558243936,-500.0,0.00016986,2]
[351411457,1738558243946,-505.78369278,0.00016986,2]
[351411458,1738558243955,-500.0,0.00016986,2]
[351411459,1738558243965,-500.0,0.00016986,2]
[351411460,1738558243975,-500.0,0.00016986,2]
[351411461,1738558243984,-746.82,0.00016986,2]
[351411462,1738558243994,-1270.12,0.00016986,2]
[351411463,1738558244004,-500.0,0.00016986,2]
[351411464,1738558244014,-500.0,0.00016986,2]
[351411465,1738558244024,-1652.2,0.00016986,2]
[351411466,1738558244034,-500.0,0.00016986,2]
[351411467,1738558244043,-502.83,0.00016986,2]
[351411468,1738558244052,-895.85,0.00016986,2]
[351411469,1738558244062,-500.0,0.00016986,2]
[351411470,1738558244071,-852.62,0.00016986,2]
[351411471,1738558244081,-581.52,0.00016986,2]
[351411472,1738558244091,-1112.71,0.00016986,2]
[351411473,1738558244100,-722.18,0.00017122,2]
[351411474,1738558244110,-500.0,0.00017122,2]
[351411475,1738558244119,-3353.4,0.00017123,2]
[351411476,1738558244129,-500.0,0.00017123,2]
[351411477,1738558244139,-500.0,0.00017123,2]
[351411478,1738558244148,-500.0,0.00017123,2]
[351411479,1738558244157,-500.0,0.00017123,2]
[351411480,1738558244170,-500.0,0.00017123,2]
[351411481,1738558244179,-500.0,0.00017123,2]
[351411482,1738558244189,-500.0,0.00017123,2]
[351411483,1738558244199,-746.82,0.00017123,2]
[351411484,1738558244209,-1270.12,0.00017123,2]
[351411485,1738558244218,-500.0,0.00017123,2]
[351411486,1738558244228,-500.0,0.00017123,2]
[351411487,1738558244238,-1652.2,0.00017123,2]
[351411488,1738558244248,-500.0,0.00017123,2]
[351411489,1738558244257,-502.83,0.00017123,2]
[351411490,1738558244267,-895.85,0.00017123,2]
[351411491,1738558244278,-500.0,0.00017123,2]
[351411492,1738558244288,-852.62,0.00017123,2]
[351411493,1738558244298,-581.52,0.00017123,2]
[351411494,1738558244308,-1112.71,0.00017123,2]
[351411495,1738558244318,-181.248605,0.00017123,2]
[351411496,1738558244327,-722.18,0.00017259,2]
[351411497,1738558244336,-500.0,0.00017259,2]
[351411498,1738558244346,-586.33077268,0.00017259,2]
[351411499,1738558244355,-404.4119749,0.00017259,2]
[351411500,1738558244365,-3353.4,0.0001726,2]
[351411501,1738558244375,-500.0,0.0001726,2]
[351411502,1738558244385,-500.0,0.0001726,2]
[351411503,1738558244394,-500.0,0.0001726,2]
[351411504,1738558244404,-500.0,0.0001726,2]
[351411505,1738558244419,-500.0,0.0001726,2]
[351411506,1738558244428,-500.0,0.0001726,2]
[351411507,1738558244438,-500.0,0.0001726,2]
[351411508,1738558244448,-746.82,0.0001726,2]
[351411509,1738558244457,-1270.12,0.0001726,2]
[351411510,1738558244467,-500.0,0.0001726,2]
[351411511,1738558244477,-500.0,0.0001726,2]
[351411512,1738558244487,-1652.2,0.0001726,2]
[351411513,1738558244497,-500.0,0.0001726,2]
[351411514,1738558244507,-502.83,0.0001726,2]
[351411515,1738558244517,-895.85,0.0001726,2]
[351411516,1738558244526,-500.0,0.0001726,2]
[351411517,1738558244536,-852.62,0.0001726,2]
[351411518,1738558244546,-581.52,0.0001726,2]
[351411519,1738558244555,-1112.71,0.0001726,2]
[351411520,1738558244565,-722.18,0.00017396,2]
[351411521,1738558244575,-500.0,0.00017396,2]
[351411522,1738558244585,-3353.4,0.00017397,2]
[351411523,1738558244595,-500.0,0.00017397,2]
[351411524,1738558244605,-632.5,0.00017397,2]
[351411525,1738558244617,-500.0,0.00017397,2]
[351411526,1738558244627,-500.0,0.00017397,2]
[351411527,1738558244638,-500.0,0.00017397,2]
[351411528,1738558244647,-500.0,0.00017397,2]
[351411529,1738558244657,-500.0,0.00017397,2]
[351411530,1738558244671,-746.82,0.00017397,2]
[351411531,1738558244680,-1270.12,0.00017397,2]
[351411532,1738558244689,-500.0,0.00017397,2]
[351411533,1738558244698,-500.0,0.00017397,2]
[351411534,1738558244708,-292.47503679,0.00017397,2]
[351411538,1738558245537,-1359.72496321,0.00017397,2]
[351411539,1738558245547,-500.0,0.00017397,2]
[351411540,1738558245556,-502.83,0.00017397,2]
[351411541,1738558245565,-895.85,0.00017397,2]
[351411542,1738558245574,-500.0,0.00017397,2]
[351411543,1738558245583,-852.62,0.00017397,2]
[351411544,1738558245592,-581.52,0.00017397,2]
[351411545,1738558245601,-1112.71,0.00017397,2]
[351411547,1738558245610,-722.18,0.00017533,2]
[351411549,1738558245621,-500.0,0.00017533,2]
[351411551,1738558245631,-3353.4,0.00017534,2]
[351411553,1738558245640,-500.0,0.00017534,2]
[351411555,1738558245650,-500.0,0.00017534,2]
[351411556,1738558245664,-500.0,0.00017534,2]
[351411557,1738558245694,-500.0,0.00017534,2]
[351411558,1738558245707,-500.0,0.00017534,2]
[351411559,1738558245717,-500.0,0.00017534,2]
[351411560,1738558245727,-746.82,0.00017534,2]
[351411561,1738558245736,-1270.12,0.00017534,2]
[351411562,1738558245747,-500.0,0.00017534,2]
[351411563,1738558245757,-500.0,0.00017534,2]
[351411564,1738558245770,-1652.2,0.00017534,2]
[351411565,1738558245779,-500.0,0.00017534,2]
[351411566,1738558245789,-502.83,0.00017534,2]
[351411567,1738558245798,-895.85,0.00017534,2]
[351411568,1738558245807,-500.0,0.00017534,2]
[351411569,1738558245816,-852.62,0.00017534,2]
[351411570,1738558245826,-581.52,0.00017534,2]
[351411571,1738558245836,-1112.71,0.00017534,2]
[351411572,1738558245846,-150.0,0.00017581,2]
[351411573,1738558245856,-1000.0,0.00017647,2]
[351411574,1738558245866,-722.18,0.0001767,2]
[351411575,1738558245875,-500.0,0.0001767,2]
[351411576,1738558245885,-500.0,0.00017671,2]
[351411577,1738558245895,-603.54175038,0.00017671,2]
[351411589,1738558247300,-2749.85824962,0.00017671,2]
[351411590,1738558247311,-500.0,0.00017671,2]
[351411591,1738558247320,-500.0,0.00017671,2]
[351411592,1738558247330,-500.0,0.00017671,2]
[351411593,1738558247340,-500.0,0.00017671,2]
[351411594,1738558247350,-500.0,0.00017671,2]
[351411595,1738558247360,-746.82,0.00017671,2]
[351411596,1738558247370,-1270.12,0.00017671,2]
[351411597,1738558247381,-500.0,0.00017671,2]
[351411598,1738558247390,-183.80009465,0.00017671,2]
[351411599,1738558247400,-1652.2,0.00017671,2]
[351411600,1738558247410,-500.0,0.00017671,2]
[351411601,1738558247423,-502.83,0.00017671,2]
[351411602,1738558247433,-895.85,0.00017671,2]
[351411603,1738558247443,-500.0,0.00017671,2]
[351411604,1738558247453,-852.62,0.00017671,2]
[351411605,1738558247462,-581.52,0.00017671,2]
[351411606,1738558247472,-1112.71,0.00017671,2]
[351411607,1738558247482,-1000.0,0.00017777,2]
[351411608,1738558247491,-722.18,0.00017807,2]
[351411609,1738558247501,-500.0,0.00017807,2]
[351411610,1738558247510,-500.0,0.00017808,2]
[351411611,1738558247520,-3353.4,0.00017808,2]
[351411612,1738558247530,-500.0,0.00017808,2]
[351411613,1738558247539,-500.0,0.00017808,2]
[351411614,1738558247548,-500.0,0.00017808,2]
[351411615,1738558247558,-500.0,0.00017808,2]
[351411616,1738558247567,-500.0,0.00017808,2]
[351411617,1738558247578,-746.82,0.00017808,2]
[351411618,1738558247587,-1270.12,0.00017808,2]
[351411619,1738558247597,-500.0,0.00017808,2]
[351411620,1738558247607,-1652.2,0.00017808,2]
[351411621,1738558247616,-500.0,0.00017808,2]
[351411622,1738558247626,-502.83,0.00017808,2]
[351411623,1738558247635,-895.85,0.00017808,2]
[351411624,1738558247645,-272.34901257,0.00017808,2]
[351411625,1738558247654,-852.62,0.00017808,2]
[351411626,1738558247663,-581.52,0.00017808,2]
[351411627,1738558247675,-1112.71,0.00017808,2]
[351411628,1738558247685,-459.4359642,0.00017819,2]
[351411629,1738558247695,-22597.17839438,0.00017819,2]
[351411630,1738558247704,-1200.0,0.00017822,2]
[351411631,1738558247715,-157.0,0.00017926,2]
[351411632,1738558247724,-722.18,0.00017944,2]
[351411633,1738558247734,-500.0,0.00017944,2]
[351411634,1738558247745,-500.0,0.00017945,2]
[351411635,1738558247755,-3353.4,0.00017945,2]
[351411636,1738558247767,-500.0,0.00017945,2]
[351411637,1738558247776,-500.0,0.00017945,2]
[351411638,1738558247786,-500.0,0.00017945,2]
[351411639,1738558247797,-500.0,0.00017945,2]
[351411640,1738558247806,-500.0,0.00017945,2]
[351411641,1738558247816,-746.82,0.00017945,2]
[351411642,1738558247825,-1270.12,0.00017945,2]
[351411643,1738558247835,-500.0,0.00017945,2]
[351411644,1738558247847,-1652.2,0.00017945,2]
[351411645,1738558247857,-500.0,0.00017945,2]
[351411646,1738558247867,-502.83,0.00017945,2]
[351411647,1738558247877,-895.85,0.00017945,2]
[351411648,1738558247887,-852.62,0.00017945,2]
[351411649,1738558247896,-581.52,0.00017945,2]
[351411650,1738558247906,-1112.71,0.00017945,2]
[351411651,1738558247920,-420.0,0.00017963,2]
[351411652,1738558247931,-500.0,0.00017973,2]
[351411653,1738558247941,-502.30233845,0.00017973,2]
[351411654,1738558247951,-501.93398295,0.00017973,2]
[351411655,1738558247960,-760.46455841,0.00017998,2]
[351411656,1738558247969,-500.0,0.00017999,2]
[351411657,1738558247979,-189.3033005,0.00017999,2]
[351411658,1738558247988,-25532.55975957,0.00018,5]
[351411659,1738558248011,-735.86,0.00016575,2]
[351411660,1738558248021,-157.0,0.00017926,2]
[351411661,1738558248031,-7281.3613378,0.00018,5]
[351411662,1738558248043,-3616.88405078,0.00018,5]
[351411663,1738558248054,-102750.0,0.00018,5]
[351411664,1738558248313,-2895.80156444,0.00016712,2]